[Event "WYCC 2018 G14"]
[Site "Halkidiki"]
[Date "2018.10.26"]
[Round "7"]
[White "Moracchini, Margaux"]
[Black "Yellamraju, Ambica"]
[Result "0-1"]
[ECO "C07"]
[WhiteElo "1838"]
[BlackElo "1647"]
[Annotator "NA"]
[PlyCount "126"]
[EventDate "2018.10.20"]
[EventType "swiss"]
[EventCountry "GRE"]
[SourceTitle "playchess.com"]
[Source "ChessBase"]
[SourceQuality "1"]
[TimeControl "40/5400+30:1800+30"]

1. e4 {[%emt 0:00:00]} e6 {[%emt 0:00:00]} 2. d4 {[%emt 0:00:15]} d5 {[%emt 0:00:00]} 3. Nd2 {[%emt 0:00:10]} c5 {[%emt 0:00:06]} 4. exd5 {[%emt 0:00:18]} Qxd5 {[%emt 0:00:10]} 5. Ngf3 {[%emt 0:01:11]} cxd4 {[%emt 0:00:28]} 6. Bc4 {[%emt 0:01:54]} Qd7 {[%emt 0:01:07]} 7. O-O {[%emt 0:02:04]} Nc6 {[%emt 0:00:22]} 8. Nb3 {[%emt 0:00:42]} Nf6 {[%emt 0:00:46]} 9. Nbxd4 {[%emt 0:03:05]} Nxd4 {[%emt 0:00:10]} 10. Nxd4 {[%emt 0:00:22]} a6 {[%emt 0:00:09]} 11. a4 {[%emt 0:06:27]} Bc5 {[%emt 0:02:27]} 12. Nb3 {[%emt 0:02:51]} Qxd1 {[%emt 0:12:32]} 13. Rxd1 {[%emt 0:00:02]} Bb6 {[%emt 0:00:40]} 14. a5 {[%emt 0:01:09]} Ba7 {[%emt 0:03:41]} 15. Be3 {[%emt 0:07:31]} Bxe3 {[%emt 0:07:00]} 16. fxe3 {[%emt 0:00:04]} Bd7 {[%emt 0:01:56]} 17. Rd6 {[%emt 0:06:39]} Rc8 {[%emt 0:05:31]} 18. Nd2 {[%emt 0:17:05]} Ke7 {[%emt 0:13:01]} 19. Rd3 {[%emt 0:06:18]} Rhd8 {[%emt 0:03:36]} 20. h3 {[%emt 0:03:51]} Bc6 {[%emt 0:03:12]} 21. Raa3 {[%emt 0:01:29]} Nd7 {[%emt 0:03:08]} 22. b4 {[%emt 0:07:54]} Ne5 {[%emt 0:03:20]} 23. Rxd8 {[%emt 0:02:02]} Rxd8 {[%emt 0:01:13]} 24. Bd3 {[%emt 0:00:14]} Rd5 {[%emt 0:09:24]} 25. Kf2 {[%emt 0:04:12]} Bb5 {[%emt 0:04:20]} 26. Ke2 {[%emt 0:01:28]} Bxd3+ {[%emt 0:00:39]} 27. cxd3 {[%emt 0:00:06]} Rb5 {[%emt 0:00:20]} 28. Rb3 {[%emt 0:03:14]} Nc6 {[%emt 0:00:46]} 29. Ne4 {[%emt 0:02:55]} Nxa5 {[%emt 0:02:14]} 30. Rc3 {[%emt 0:00:42]} Nc6 {[%emt 0:01:19]} 31. Nc5 {[%emt 0:03:08]} Nxb4 {[%emt 0:01:47]} 32. d4 {[%emt 0:03:51]} b6 {[%emt 0:03:34]} 33. Ne4 {[%emt 0:00:48]} Nd5 {[%emt 0:00:37]} 34. Ra3 {[%emt 0:01:01]} a5 {[%emt 0:00:27]} 35. Kd3 {[%emt 0:00:59]} Rb4 {[%emt 0:01:14]} 36. Nd2 {[%emt 0:01:14]} f6 {[%emt 0:03:27]} 37. g3 {[%emt 0:01:51]} Kd7 38. Nc4 {[%emt 0:02:32]} Kc7 {[%emt 0:07:02]} 39. e4 {[%emt 0:00:00]} Ne7 {[%emt 0:00:00]} 40. Rc3 {[%emt 0:00:00]} Kd7 41. Ra3 {[%emt 0:05:26]} Nc6 {[%emt 0:04:28]} 42. g4 {[%emt 0:08:20]} Na7 {[%emt 0:05:12]} 43. Nxb6+ {[%emt 0:00:05]} Rxb6 {[%emt 0:00:31]} 44. Rxa5 {[%emt 0:00:32]} Nc6 {[%emt 0:01:38]} 45. Rh5 h6 46. e5 {[%emt 0:03:19]} fxe5 {[%emt 0:05:50]} 47. dxe5 {[%emt 0:00:07]} Rb5 {[%emt 0:00:10]} 48. Ke4 {[%emt 0:00:31]} Rxe5+ {[%emt 0:03:56]} 49. Rxe5 {[%emt 0:00:11]} Nxe5 {[%emt 0:00:04]} 50. Kxe5 {[%emt 0:00:22]} g5 {[%emt 0:01:37]} 51. Kf6 {[%emt 0:02:48]} Kd6 {[%emt 0:00:06]} 52. Kg6 {[%emt 0:00:29]} e5 {[%emt 0:00:05]} 53. Kxh6 {[%emt 0:00:10]} e4 {[%emt 0:00:12]} 54. Kxg5 {[%emt 0:00:03]} e3 {[%emt 0:00:03]} 55. h4 e2 {[%emt 0:00:04]} 56. h5 {[%emt 0:00:19]} e1=Q {[%emt 0:00:13]} 57. h6 {[%emt 0:01:15]} Qe4 {[%emt 0:02:06]} 58. Kf6 {[%emt 0:02:03]} Qf4+ {[%emt 0:01:06]} 59. Kg7 {[%emt 0:00:28]} Ke7 {[%emt 0:04:30]} 60. Kg6 {[%emt 0:05:27]} Qf7+ {[%emt 0:00:24]} 61. Kg5 {[%emt 0:00:06]} Qh7 {[%emt 0:00:26]} 62. Kh5 {[%emt 0:00:01]} Kf6 {[%emt 0:00:39]} 63. g5+ {[%emt 0:00:05]} Kf5 {[%emt 0:00:11]} 0-1

[Event "WYCC 2018 G14"]
[Site "Halkidiki"]
[Date "2018.10.26"]
[Round "7"]
[White "Brunner, Sophia"]
[Black "Villanyi, Alexia"]
[Result "1-0"]
[ECO "E91"]
[WhiteElo "1812"]
[BlackElo "1709"]
[Annotator "NA"]
[PlyCount "117"]
[EventDate "2018.10.20"]
[EventType "swiss"]
[EventCountry "GRE"]
[SourceTitle "playchess.com"]
[Source "ChessBase"]
[SourceQuality "1"]
[TimeControl "40/5400+30:1800+30"]

1. d4 {[%emt 0:00:00]} Nf6 {[%emt 0:00:00]} 2. Nf3 {[%emt 0:00:00]} g6 {[%emt 0:00:00]} 3. c4 {[%emt 0:00:00]} Bg7 {[%emt 0:00:00]} 4. Nc3 {[%emt 0:00:07]} O-O {[%emt 0:00:04]} 5. e4 {[%emt 0:00:11]} d6 {[%emt 0:00:12]} 6. Be2 {[%emt 0:00:11]} Bg4 {[%emt 0:00:33]} 7. O-O {[%emt 0:04:37]} Nfd7 {[%emt 0:01:21]} 8. Be3 {[%emt 0:04:26]} Nc6 {[%emt 0:01:07]} 9. h3 {[%emt 0:03:32]} Bxf3 {[%emt 0:00:31]} 10. Bxf3 {[%emt 0:00:36]} e5 {[%emt 0:01:11]} 11. d5 {[%emt 0:01:30]} Nd4 {[%emt 0:00:37]} 12. Rc1 {[%emt 0:18:48]} a5 {[%emt 0:08:50]} 13. b3 {[%emt 0:04:35]} Nxf3+ {[%emt 0:10:35]} 14. Qxf3 {[%emt 0:00:26]} f5 {[%emt 0:01:04]} 15. Qe2 {[%emt 0:05:50]} f4 {[%emt 0:01:16]} 16. Bd2 {[%emt 0:00:06]} f3 {[%emt 0:17:25]} 17. gxf3 {[%emt 0:01:10]} Qh4 {[%emt 0:00:39]} 18. Kh2 {[%emt 0:01:53]} Nf6 {[%emt 0:03:28]} 19. Rg1 {[%emt 0:03:28]} Bh6 {[%emt 0:01:36]} 20. Bxh6 {[%emt 0:00:55]} Qxh6 {[%emt 0:00:14]} 21. Qe3 {[%emt 0:00:20]} Qh4 {[%emt 0:01:12]} 22. Ne2 {[%emt 0:08:17]} Nh5 {[%emt 0:03:35]} 23. Rg4 {[%emt 0:17:19]} Qf6 {[%emt 0:00:47]} 24. Rc3 {[%emt 0:00:21]} Rf7 {[%emt 0:01:48]} 25. Qg5 {[%emt 0:13:46]} Qxg5 {[%emt 0:10:48]} 26. Rxg5 {[%emt 0:00:04]} Raf8 {[%emt 0:00:04]} 27. Kg2 {[%emt 0:01:13]} Kg7 {[%emt 0:01:06]} 28. Rg4 {[%emt 0:01:27]} Nf6 {[%emt 0:00:30]} 29. Re3 {[%emt 0:05:03]} Nxg4 {[%emt 0:00:21]} 30. hxg4 {[%emt 0:00:01]} h5 {[%emt 0:01:03]} 31. g5 {[%emt 0:01:17]} h4 {[%emt 0:00:11]} 32. Ng1 {[%emt 0:00:10]} c6 {[%emt 0:00:46]} 33. Rd3 {[%emt 0:01:41]} Rd7 {[%emt 0:01:19]} 34. Rd2 {[%emt 0:01:38]} Kf7 {[%emt 0:01:11]} 35. Kh3 {[%emt 0:01:09]} Rh8 {[%emt 0:01:17]} 36. Kg4 {[%emt 0:01:04]} cxd5 {[%emt 0:06:54]} 37. Rxd5 {[%emt 0:00:08]} b6 {[%emt 0:00:03]} 38. a4 {[%emt 0:00:30]} Ke6 {[%emt 0:01:11]} 39. Rb5 {[%emt 0:00:26]} Rb7 {[%emt 0:04:25]} 40. Nh3 {[%emt 0:00:00]} Rc8 {[%emt 0:00:00]} 41. f4 {[%emt 0:16:13]} exf4 {[%emt 0:06:15]} 42. Nxf4+ {[%emt 0:00:24]} Kf7 {[%emt 0:00:11]} 43. Rd5 {[%emt 0:00:59]} Rd7 {[%emt 0:01:30]} 44. e5 {[%emt 0:01:42]} dxe5 {[%emt 0:06:45]} 45. Rxd7+ {[%emt 0:00:14]} Ke8 {[%emt 0:00:08]} 46. Nd5 {[%emt 0:09:33]} Kxd7 {[%emt 0:00:17]} 47. Nxb6+ {[%emt 0:00:03]} Kc7 {[%emt 0:00:07]} 48. Nxc8 {[%emt 0:00:03]} Kxc8 {[%emt 0:00:13]} 49. Kxh4 {[%emt 0:00:03]} Kd7 {[%emt 0:00:15]} 50. Kg3 {[%emt 0:00:14]} Ke6 {[%emt 0:00:24]} 51. Kg4 {[%emt 0:00:13]} Kd6 {[%emt 0:00:17]} 52. Kf3 {[%emt 0:00:06]} Ke6 {[%emt 0:00:12]} 53. Ke4 {[%emt 0:00:04]} Kd6 {[%emt 0:00:03]} 54. f4 {[%emt 0:00:19]} exf4 {[%emt 0:00:09]} 55. Kxf4 {[%emt 0:00:05]} Ke6 {[%emt 0:00:07]} 56. Ke4 {[%emt 0:00:08]} Kd6 {[%emt 0:00:05]} 57. Kd4 {[%emt 0:00:20]} Ke6 {[%emt 0:00:29]} 58. c5 {[%emt 0:00:10]} Ke7 {[%emt 0:00:10]} 59. Ke5 {[%emt 0:00:07]} 1-0

[Event "WYCC 2018 G14"]
[Site "Halkidiki"]
[Date "2018.10.26"]
[Round "7"]
[White "Zeng, Sheena"]
[Black "Kuhar, Larisa"]
[Result "1/2-1/2"]
[ECO "A58"]
[WhiteElo "1807"]
[BlackElo "1916"]
[Annotator "NA"]
[PlyCount "216"]
[EventDate "2018.10.20"]
[EventType "swiss"]
[EventCountry "GRE"]
[SourceTitle "playchess.com"]
[Source "ChessBase"]
[SourceQuality "1"]
[TimeControl "40/5400+30:1800+30"]

1. d4 {[%emt 0:00:00]} Nf6 {[%emt 0:00:00]} 2. c4 {[%emt 0:00:00]} c5 {[%emt 0:00:00]} 3. d5 {[%emt 0:00:00]} b5 {[%emt 0:00:00]} 4. cxb5 {[%emt 0:00:03]} a6 {[%emt 0:00:05]} 5. bxa6 {[%emt 0:00:18]} g6 {[%emt 0:00:16]} 6. Nc3 {[%emt 0:00:17]} Bxa6 {[%emt 0:00:13]} 7. e4 {[%emt 0:00:26]} Bxf1 {[%emt 0:00:17]} 8. Kxf1 {[%emt 0:00:06]} d6 {[%emt 0:00:18]} 9. Nf3 {[%emt 0:00:20]} Nbd7 {[%emt 0:00:18]} 10. g3 {[%emt 0:00:21]} Bg7 {[%emt 0:00:20]} 11. Kg2 {[%emt 0:00:12]} O-O {[%emt 0:00:25]} 12. a4 {[%emt 0:00:37] A59: Benko/Volga Gambit: White castles by hand} Ra6 {[%emt 0:01:25]} 13. Qc2 {[%emt 0:00:39]} (13. Re1 Qa8 14. Nb5 Rc8 15. Ra3 Ne8 16. Qc2 Nc7 17. Nxc7 Rxc7 18. b4 cxb4 19. Qxc7 bxa3 20. Bxa3 Rxa4 21. Qxd7 {0-1 (37) Vallejo Pons,F (2711)-Tregubov,P (2585) Tallinn 2016}) 13... Qa8 {[%emt 0:00:35]} 14. Ra3 {[%emt 0:01:06]} e6 {[%emt 0:02:42]} 15. dxe6 {[%emt 0:00:37]} fxe6 {[%emt 0:00:16]} 16. Re1 {[%emt 0:00:53]} c4 {[%emt 0:06:36]} 17. Be3 $146 {[%emt 0:08:08]} ({Predecessor:} 17. Nb5 Rc8 18. Bf4 Bf8 19. Rc3 e5 20. Rxc4 Rxc4 21. Qxc4+ {1-0 (91) Curi,G (2156)-Coppola,C (2207) Montevideo 2014}) 17... Ng4 {[%emt 0:07:25]} 18. Nb5 {[%emt 0:05:26]} Nxe3+ {[%emt 0:05:40]} 19. Rexe3 {[%emt 0:00:34]} Rc8 {[%emt 0:01:35]} 20. Nfd4 {[%emt 0:05:49]} d5 {[%emt 0:05:24]} 21. exd5 {[%emt 0:16:12]} exd5 {[%emt 0:00:29]} 22. Qd2 {[%emt 0:32:16]} Bh6 {[%emt 0:07:49]} 23. f4 {[%emt 0:00:35]} Nc5 {[%emt 0:00:21]} 24. b3 {[%emt 0:16:03]} cxb3 {[%emt 0:18:15]} 25. Nxb3 {[%emt 0:00:10]} d4+ {[%emt 0:09:54]} 26. Rf3 {[%emt 0:00:11]} Nxb3 {[%emt 0:02:12]} 27. Raxb3 {[%emt 0:00:06]} Rxa4 {[%emt 0:00:07]} 28. Kf2 {[%emt 0:02:18]} Bg7 {[%emt 0:01:13]} 29. g4 {[%emt 0:04:20]} Qd5 {[%emt 0:04:19]} 30. Na3 {[%emt 0:02:53]} Qe4 {[%emt 0:00:55]} 31. Qd3 {[%emt 0:01:34]} Qe7 {[%emt 0:02:17]} 32. Kg2 {[%emt 0:01:25]} Ra5 {[%emt 0:07:12]} 33. Nc2 {[%emt 0:01:12]} Ra2 {[%emt 0:01:53]} 34. Rf2 {[%emt 0:00:07]} Qc7 {[%emt 0:00:21]} 35. Nxd4 {[%emt 0:00:52]} Rxf2+ {[%emt 0:00:10]} 36. Kxf2 {[%emt 0:00:05]} Bxd4+ {[%emt 0:00:16]} 37. Kg3 {[%emt 0:01:04]} Qd7 {[%emt 0:07:03]} 38. f5 {[%emt 0:00:53]} gxf5 {[%emt 0:01:34]} 39. gxf5 {[%emt 0:00:17]} Be5+ {[%emt 0:01:47]} 40. Kh3 {[%emt 0:00:00]} Qf7 {[%emt 0:00:00]} 41. Kg2 {[%emt 0:07:02]} Qg7+ {[%emt 0:07:39]} 42. Kf3 {[%emt 0:07:15]} Bxh2 {[%emt 0:00:47]} 43. Qd5+ {[%emt 0:04:20]} Qf7 {[%emt 0:01:04]} 44. Qxf7+ {[%emt 0:00:13]} Kxf7 {[%emt 0:00:08]} 45. Rb7+ {[%emt 0:00:37]} Bc7 {[%emt 0:00:33]} 46. Rb5 {[%emt 0:06:02]} Kf6 {[%emt 0:01:37]} 47. Rc5 {[%emt 0:00:22]} h5 {[%emt 0:01:21]} 48. Rc6+ {[%emt 0:03:40]} Kxf5 {[%emt 0:00:29]} 49. Rc5+ {[%emt 0:00:07]} Kg6 {[%emt 0:00:44]} 50. Kg2 {[%emt 0:01:13]} Kh6 {[%emt 0:02:40]} 51. Kh3 {[%emt 0:00:18]} Kg6 {[%emt 0:01:17]} 52. Kg2 {[%emt 0:00:58]} h4 {[%emt 0:01:40]} 53. Kh3 {[%emt 0:00:45]} Kf6 {[%emt 0:00:53]} 54. Rc4 {[%emt 0:00:33]} Kf5 {[%emt 0:00:47]} 55. Rc6 {[%emt 0:03:52]} Ke4 {[%emt 0:01:18]} 56. Rc4+ {[%emt 0:00:31]} Kd5 {[%emt 0:00:22]} 57. Rxh4 {[%emt 0:00:53]} Rf8 {[%emt 0:01:24]} 58. Kg2 {[%emt 0:00:27]} Bf4 {[%emt 0:00:33]} 59. Rh7 {[%emt 0:01:02]} Ke4 {[%emt 0:01:06]} 60. Re7+ {[%emt 0:00:18]} Be5 {[%emt 0:00:21]} 61. Re6 {[%emt 0:00:19]} Rg8+ {[%emt 0:00:59]} 62. Kf2 {[%emt 0:00:15]} Ra8 {[%emt 0:02:10]} 63. Rc6 {[%emt 0:01:21]} Ra2+ {[%emt 0:00:13]} 64. Ke1 {[%emt 0:00:21]} Ke3 {[%emt 0:02:01]} 65. Kd1 {[%emt 0:00:33]} Bd4 {[%emt 0:00:41]} 66. Rc2 {[%emt 0:00:29]} Ra1+ {[%emt 0:01:12]} 67. Rc1 {[%emt 0:00:04]} Ra3 {[%emt 0:00:39]} 68. Rc2 {[%emt 0:00:51]} Bc3 {[%emt 0:05:21]} 69. Re2+ {[%emt 0:00:08]} Kf3 {[%emt 0:01:21]} 70. Re7 {[%emt 0:00:52]} Ra2 {[%emt 0:01:04]} 71. Re8 {[%emt 0:00:30]} Rh2 {[%emt 0:00:35]} 72. Kc1 {[%emt 0:00:19]} Kf4 {[%emt 0:01:27]} 73. Kd1 {[%emt 0:00:37]} Be5 {[%emt 0:00:18]} 74. Kc1 {[%emt 0:00:35]} Ke4 {[%emt 0:00:18]} 75. Re6 {[%emt 0:00:30]} Kd4 {[%emt 0:01:04]} 76. Kd1 {[%emt 0:00:35]} Ra2 {[%emt 0:02:56]} 77. Ke1 {[%emt 0:00:14]} Ke4 {[%emt 0:03:25]} 78. Re8 {[%emt 0:00:17]} Kf5 {[%emt 0:00:47]} 79. Kd1 {[%emt 0:00:18]} Rh2 {[%emt 0:01:51]} 80. Ke1 {[%emt 0:00:42]} Bd4 {[%emt 0:01:20]} 81. Re2 {[%emt 0:00:27]} Rh1+ {[%emt 0:00:58]} 82. Kd2 {[%emt 0:00:06]} Rh3 {[%emt 0:00:19]} 83. Kc2 {[%emt 0:00:22]} Be5 {[%emt 0:00:43]} 84. Kd1 {[%emt 0:01:28]} Ke6 {[%emt 0:00:37]} 85. Kc2 {[%emt 0:00:32]} Kd5 {[%emt 0:00:05]} 86. Kd2 {[%emt 0:00:29]} Ra3 {[%emt 0:00:16]} 87. Ke1 {[%emt 0:00:28]} Bd4 {[%emt 0:01:24]} 88. Kf1 {[%emt 0:00:18]} Be3 {[%emt 0:00:19]} 89. Kg2 {[%emt 0:00:29]} Ke4 {[%emt 0:00:15]} 90. Rc2 {[%emt 0:00:44]} Ra6 {[%emt 0:00:36]} 91. Kf1 {[%emt 0:00:31]} Rg6 {[%emt 0:00:41]} 92. Rg2 {[%emt 0:00:22]} Rf6+ {[%emt 0:00:16]} 93. Ke2 {[%emt 0:00:06]} Rd6 {[%emt 0:01:02]} 94. Rg4+ {[%emt 0:00:42]} Bf4 {[%emt 0:00:13]} 95. Rg8 {[%emt 0:00:12]} Rd2+ {[%emt 0:00:50]} 96. Ke1 {[%emt 0:00:22]} Ra2 {[%emt 0:00:25]} 97. Re8+ {[%emt 0:00:28]} Kf3 {[%emt 0:00:27]} 98. Kd1 {[%emt 0:00:53]} Be3 {[%emt 0:00:38]} 99. Re6 {[%emt 0:00:50]} Rd2+ {[%emt 0:00:26]} 100. Ke1 {[%emt 0:00:07]} Rd8 {[%emt 0:00:34]} 101. Rf6+ {[%emt 0:01:03]} Ke4 {[%emt 0:00:27]} 102. Re6+ {[%emt 0:00:40]} Kd3 {[%emt 0:00:20]} 103. Kd1 {[%emt 0:00:23]} Ra8 {[%emt 0:00:41]} 104. Rd6+ $11 {[%emt 0:00:06]} Bd4 {[%emt 0:00:20]} 105. Rc6 {[%emt 0:00:10]} Ra2 {[%emt 0:00:45]} 106. Rc8 {[%emt 0:00:34]} Rd2+ {[%emt 0:00:28]} 107. Kc1 {[%emt 0:00:57]} Ra2 {[%emt 0:00:21]} 108. Kd1 {[%emt 0:00:07]} Ra1+ {[%emt 0:00:39]} 1/2-1/2

[Event "WYCC 2018 G14"]
[Site "Halkidiki"]
[Date "2018.10.26"]
[Round "7"]
[White "Anghel, Maria"]
[Black "Nguyen, Thien Ngan"]
[Result "0-1"]
[ECO "D30"]
[WhiteElo "1801"]
[BlackElo "1888"]
[Annotator "NA"]
[PlyCount "126"]
[EventDate "2018.10.20"]
[EventType "swiss"]
[EventCountry "GRE"]
[SourceTitle "playchess.com"]
[Source "ChessBase"]
[SourceQuality "1"]
[TimeControl "40/5400+30:1800+30"]

1. d4 {[%emt 0:00:00]} d5 {[%emt 0:00:00]} 2. c4 {[%emt 0:00:00]} e6 {[%emt 0:00:00]} 3. Nf3 {[%emt 0:00:00]} c5 {[%emt 0:00:01]} 4. cxd5 {[%emt 0:00:10]} exd5 {[%emt 0:00:06]} 5. g3 {[%emt 0:00:19]} Nc6 {[%emt 0:00:51]} 6. Bg2 {[%emt 0:00:17]} Nf6 {[%emt 0:00:14]} 7. O-O {[%emt 0:00:42]} Be7 {[%emt 0:00:32]} 8. dxc5 {[%emt 0:00:14]} Bxc5 {[%emt 0:00:13]} 9. Nc3 {[%emt 0:01:12]} O-O {[%emt 0:01:19]} 10. a3 {[%emt 0:00:14]} a5 {[%emt 0:02:28]} 11. Bg5 {[%emt 0:05:07]} d4 {[%emt 0:01:07]} 12. Nb5 {[%emt 0:12:27]} h6 {[%emt 0:06:20]} 13. Bxf6 {[%emt 0:17:04]} Qxf6 {[%emt 0:00:17]} 14. Rc1 {[%emt 0:04:53]} Bb6 {[%emt 0:01:30]} 15. Nd2 {[%emt 0:04:22]} d3 {[%emt 0:09:52]} 16. exd3 {[%emt 0:09:51]} Qxb2 {[%emt 0:02:19]} 17. Rb1 {[%emt 0:03:28]} Qf6 {[%emt 0:03:32]} 18. Ne4 {[%emt 0:02:41]} Qd8 {[%emt 0:02:48]} 19. Nbd6 {[%emt 0:03:58]} Rb8 {[%emt 0:04:46]} 20. Nxc8 {[%emt 0:02:23]} Rxc8 {[%emt 0:00:58]} 21. Qb3 {[%emt 0:03:36]} Ba7 {[%emt 0:01:01]} 22. Qxb7 {[%emt 0:04:03]} Bd4 {[%emt 0:11:58]} 23. Rfc1 {[%emt 0:07:16]} Ne5 {[%emt 0:02:24]} 24. Qb5 {[%emt 0:04:36]} Rb8 {[%emt 0:03:23]} 25. Qa4 {[%emt 0:03:25]} Rb6 {[%emt 0:04:48]} 26. Qc2 {[%emt 0:02:36]} Rc6 {[%emt 0:02:52]} 27. Qd2 {[%emt 0:02:33]} Rxc1+ {[%emt 0:01:53]} 28. Rxc1 {[%emt 0:00:18]} Qb6 {[%emt 0:02:37]} 29. h3 {[%emt 0:01:24]} f5 {[%emt 0:03:55]} 30. Nc3 {[%emt 0:02:33]} Bxf2+ {[%emt 0:01:29]} 31. Kh2 {[%emt 0:01:01]} Kh8 {[%emt 0:02:13]} 32. Rf1 {[%emt 0:01:48]} Bd4 {[%emt 0:05:52]} 33. Nd5 {[%emt 0:01:22]} Qc5 {[%emt 0:03:56]} 34. Nf4 {[%emt 0:00:33]} Qxa3 {[%emt 0:03:11]} 35. Ne6 {[%emt 0:00:31]} Bc3 {[%emt 0:00:38]} 36. Qf4 {[%emt 0:00:31]} Rf6 {[%emt 0:01:50]} 37. Nd4 {[%emt 0:00:27]} Nxd3 {[%emt 0:02:29]} 38. Qe3 {[%emt 0:00:32]} Qc5 {[%emt 0:02:56]} 39. Qxd3 {[%emt 0:00:29]} Qxd4 {[%emt 0:01:08]} 40. Qb5 {[%emt 0:00:00]} Qe5 {[%emt 0:00:00]} 41. Qc4 {[%emt 0:05:12]} Bb4 {[%emt 0:03:55]} 42. Rd1 {[%emt 0:06:13]} Bd6 {[%emt 0:02:27]} 43. Rd3 {[%emt 0:11:05]} f4 {[%emt 0:00:52]} 44. Qc8+ {[%emt 0:01:55]} Rf8 {[%emt 0:00:17]} 45. Qc3 {[%emt 0:03:04]} fxg3+ {[%emt 0:01:02]} 46. Kh1 {[%emt 0:00:50]} Qxc3 {[%emt 0:02:34]} 47. Rxc3 {[%emt 0:00:08]} a4 {[%emt 0:01:21]} 48. Rd3 {[%emt 0:00:57]} Rf6 {[%emt 0:00:22]} 49. Rd2 {[%emt 0:01:23]} a3 {[%emt 0:00:10]} 50. Bd5 {[%emt 0:00:52]} h5 {[%emt 0:00:58]} 51. Kg2 {[%emt 0:00:18]} Kh7 {[%emt 0:00:11]} 52. Be4+ {[%emt 0:00:46]} Kh6 {[%emt 0:00:13]} 53. Bd5 {[%emt 0:01:15]} Kg5 {[%emt 0:00:37]} 54. Bf3 {[%emt 0:00:39]} g6 {[%emt 0:00:37]} 55. Rd5+ {[%emt 0:01:19]} Kf4 {[%emt 0:00:24]} 56. Rd2 {[%emt 0:01:13]} Ke3 {[%emt 0:00:19]} 57. Re2+ {[%emt 0:00:44]} Kd4 {[%emt 0:00:06]} 58. Rd2+ {[%emt 0:00:37]} Kc3 {[%emt 0:00:13]} 59. Ra2 {[%emt 0:00:30]} Bc5 {[%emt 0:00:22]} 60. Kxg3 {[%emt 0:00:50]} Kb4 {[%emt 0:00:21]} 61. Re2 {[%emt 0:00:56]} Rd6 {[%emt 0:00:34]} 62. Re4+ {[%emt 0:00:46]} Kb3 {[%emt 0:00:43]} 63. Re2 {[%emt 0:00:19]} a2 {[%emt 0:00:10]} 0-1

[Event "WYCC 2018 G14"]
[Site "Halkidiki"]
[Date "2018.10.26"]
[Round "7"]
[White "Zhou, Iris"]
[Black "Divya Deshmukh"]
[Result "0-1"]
[ECO "B01"]
[WhiteElo "1779"]
[BlackElo "2180"]
[Annotator "NA"]
[PlyCount "62"]
[EventDate "2018.10.20"]
[EventType "swiss"]
[EventCountry "GRE"]
[SourceTitle "playchess.com"]
[Source "ChessBase"]
[SourceQuality "1"]
[TimeControl "40/5400+30:1800+30"]

1. e4 d5 2. exd5 Nf6 3. d4 Bg4 4. Be2 Bxe2 5. Qxe2 Qxd5 6. Nf3 Nc6 7. c4 Qf5 8. O-O O-O-O 9. Be3 e6 10. Nc3 h6 11. Rfd1 g5 12. a3 Bg7 13. b4 g4 14. Ne1 Ne4 15. Nxe4 Qxe4 16. f3 Nxd4 17. Rxd4 Qxe3+ 18. Qxe3 Bxd4 19. Nc2 Bxe3+ 20. Nxe3 gxf3 21. gxf3 Rhg8+ 22. Kf1 Rd2 23. Ng4 h5 24. Nf2 Rc2 25. c5 Rd8 26. h3 Rdd2 27. Ne4 Rh2 28. Kg1 Rxh3 29. Rf1 Rhh2 30. Rd1 Rcg2+ 31. Kf1 h4 0-1

[Event "WYCC 2018 G14"]
[Site "Halkidiki"]
[Date "2018.10.26"]
[Round "7"]
[White "Vuong, Quynh Anh"]
[Black "Sim, Jia Ru"]
[Result "1/2-1/2"]
[ECO "A25"]
[WhiteElo "1747"]
[BlackElo "1979"]
[Annotator "NA"]
[PlyCount "126"]
[EventDate "2018.10.20"]
[EventType "swiss"]
[EventCountry "GRE"]
[SourceTitle "playchess.com"]
[Source "ChessBase"]
[SourceQuality "1"]
[TimeControl "40/5400+30:1800+30"]

1. c4 {[%emt 0:00:01]} e5 {[%emt 0:00:00]} 2. Nc3 {[%emt 0:00:22]} Nc6 {[%emt 0:00:00]} 3. g3 {[%emt 0:01:31]} Bc5 {[%emt 0:00:32]} 4. Bg2 {[%emt 0:00:50]} d6 {[%emt 0:00:22]} 5. Nf3 {[%emt 0:06:38]} a6 {[%emt 0:04:12]} 6. a3 {[%emt 0:03:06]} Nge7 {[%emt 0:05:08]} 7. b4 {[%emt 0:03:04]} Ba7 {[%emt 0:00:14]} 8. Bb2 {[%emt 0:00:20]} f5 {[%emt 0:04:33]} 9. d3 {[%emt 0:04:02]} O-O {[%emt 0:01:00]} 10. O-O {[%emt 0:00:42]} f4 {[%emt 0:05:52]} 11. b5 {[%emt 0:15:39]} axb5 {[%emt 0:01:18]} 12. cxb5 {[%emt 0:00:03]} Nd4 {[%emt 0:00:20]} 13. Nxd4 {[%emt 0:05:19]} Bxd4 {[%emt 0:00:16]} 14. Qb3+ {[%emt 0:02:28]} Kh8 {[%emt 0:00:47]} 15. Ne4 {[%emt 0:14:28]} Bb6 {[%emt 0:07:34]} 16. d4 {[%emt 0:16:41]} exd4 {[%emt 0:08:13]} 17. Ng5 {[%emt 0:01:08]} d5 {[%emt 0:01:02]} 18. Nf3 {[%emt 0:01:40]} fxg3 {[%emt 0:05:30]} 19. hxg3 {[%emt 0:00:12]} Nf5 {[%emt 0:01:15]} 20. Qd3 {[%emt 0:00:39]} Ra4 {[%emt 0:13:14]} 21. Rad1 {[%emt 0:03:18]} Bd7 {[%emt 0:01:59]} 22. Ne5 {[%emt 0:02:35]} Be8 {[%emt 0:01:28]} 23. Qb3 {[%emt 0:01:45]} Ra5 {[%emt 0:00:25]} 24. a4 {[%emt 0:01:32]} Qf6 {[%emt 0:07:25]} 25. Nd3 {[%emt 0:04:37]} c6 {[%emt 0:04:01]} 26. Ba3 {[%emt 0:01:35]} Rg8 {[%emt 0:00:33]} 27. bxc6 {[%emt 0:01:44]} Qxc6 {[%emt 0:00:17]} 28. Bb4 {[%emt 0:00:04]} Qxa4 {[%emt 0:00:21]} 29. Bxd5 {[%emt 0:00:32]} Rxd5 {[%emt 0:07:59]} 30. Qxd5 {[%emt 0:00:11]} Bg6 {[%emt 0:00:43]} 31. Ra1 {[%emt 0:01:04]} Qe8 {[%emt 0:00:35]} 32. Qe5 {[%emt 0:00:40]} Qd8 {[%emt 0:00:49]} 33. Ba5 {[%emt 0:01:37]} Re8 {[%emt 0:01:36]} 34. Bxb6 {[%emt 0:00:31]} Qxb6 {[%emt 0:00:06]} 35. Qa5 {[%emt 0:00:22]} Qd6 {[%emt 0:02:44]} 36. Qa3 {[%emt 0:02:48]} Qb8 {[%emt 0:01:27]} 37. Nf4 {[%emt 0:00:19]} Bf7 {[%emt 0:02:03]} 38. Qd3 {[%emt 0:00:44]} Qe5 {[%emt 0:02:01]} 39. Rfb1 {[%emt 0:00:54]} Nd6 {[%emt 0:00:28]} 40. Rb4 {[%emt 0:00:00]} g5 {[%emt 0:00:00]} 41. Ng2 {[%emt 0:02:11]} Nf5 {[%emt 0:09:50]} 42. Rb5 {[%emt 0:00:21]} Bd5 {[%emt 0:00:10]} 43. Raa5 {[%emt 0:00:09]} Rd8 {[%emt 0:00:17]} 44. e4 {[%emt 0:07:22]} Qxe4 {[%emt 0:02:30]} 45. Qxe4 {[%emt 0:00:03]} Bxe4 {[%emt 0:00:07]} 46. Rxf5 {[%emt 0:00:10]} Bxf5 {[%emt 0:00:10]} 47. Rxf5 {[%emt 0:00:02]} d3 {[%emt 0:00:12]} 48. Ne3 {[%emt 0:01:38]} d2 {[%emt 0:00:14]} 49. Nd1 {[%emt 0:01:34]} Re8 {[%emt 0:00:17]} 50. Kg2 {[%emt 0:02:09]} Re1 {[%emt 0:00:57]} 51. Nc3 {[%emt 0:00:05]} Rc1 {[%emt 0:00:48]} 52. Rd5 {[%emt 0:00:04]} Rxc3 {[%emt 0:00:07]} 53. Rxd2 {[%emt 0:00:03]} Rc7 {[%emt 0:00:52]} 54. Rd5 {[%emt 0:00:45]} h6 {[%emt 0:01:14]} 55. Rd6 {[%emt 0:00:06]} Kg7 {[%emt 0:00:06]} 56. Rb6 {[%emt 0:00:03]} Rf7 {[%emt 0:00:50]} 57. f3 {[%emt 0:00:56]} Rc7 {[%emt 0:00:52]} 58. Kh3 {[%emt 0:00:11]} Rf7 {[%emt 0:03:06]} 59. Kg4 {[%emt 0:00:18]} Rf6 {[%emt 0:00:45]} 60. Rxb7+ {[%emt 0:00:13]} Kg6 {[%emt 0:00:08]} 61. Rb3 {[%emt 0:00:40]} h5+ {[%emt 0:00:14]} 62. Kh3 {[%emt 0:00:02]} Rxf3 {[%emt 0:00:57]} 63. Rxf3 {[%emt 0:00:30]} g4+ {[%emt 0:00:05]} 1/2-1/2